bitfinex-derivatives/quotes_BNBF0:USTF0_20250326
["timestamp","ask_amount","ask_price","bid_price","bid_amount"]
[1743008262850,0.93784931,622.27,621.96,1.19948932]
[1743008263045,0.93784931,622.26,621.96,1.19948932]
[1743008263647,2.80705777,622.44,621.6,0.94508926]
[1743008263648,2.17654278,622.25,621.84,1.19948932]
[1743008263847,1.23869347,622.24,621.84,1.19948932]
[1743008264049,1.23869347,622.23,621.84,1.19948932]
[1743008264249,0.9386402,622.23,621.84,1.19948932]
[1743008264646,3.19547508,622.22,621.84,1.19948932]
[1743008264845,1.9566402,622.22,621.84,1.19948932]
[1743008265045,1.2387627,622.21,621.84,1.19948932]
[1743008265249,1.2387627,622.2,621.84,1.19948932]
[1743008265448,1.2387627,622.19,621.84,1.19948932]
[1743008265646,0.9386402,622.21,621.84,1.19948932]
[1743008265647,1.2387627,622.18,621.84,1.19948932]
[1743008265846,1.2387627,622.17,621.71,1.19948932]
[1743008266049,0.9386402,622.18,621.71,1.19948932]
[1743008266243,1.23901815,622.17,621.71,1.19948932]
[1743008266449,1.23901815,622.16,621.71,1.19948932]
[1743008266649,1.23901815,622.15,621.71,1.19948932]
[1743008266847,1.23901815,622.14,621.71,1.19948932]
[1743008267148,1.23901815,622.13,621.71,1.19948932]
[1743008267351,1.23901815,622.12,621.71,1.19948932]
[1743008267553,1.23901815,622.11,621.71,1.19948932]
[1743008267748,1.23901815,622.1,621.71,1.19948932]
[1743008267949,1.23901815,622.09,621.71,1.19948932]
[1743008268151,0.9386402,622.1,621.71,1.19948932]
[1743008268152,1.23901815,622.08,621.71,1.19948932]
[1743008268353,2.17765835,622.07,621.52,1.19948932]
[1743008268553,1.23901815,622.06,621.52,1.19948932]
[1743008268753,1.23901815,622.05,621.52,1.19948932]
[1743008268947,0.9386402,622.05,621.52,1.19948932]
[1743008269755,1.51707547,622.21,621.52,1.19948932]
[1743008269959,1.23725173,622.2,621.52,1.19948932]
[1743008270156,1.23725173,622.19,621.52,1.19948932]
[1743008270357,1.23725173,622.18,621.49,1.19948932]
[1743008270556,0.93767996,622.18,621.49,1.19948932]
[1743008270765,2.17493169,622.18,621.49,1.19948932]
[1743008270957,0.93767996,622.18,621.49,1.19948932]
[1743008271162,0.93767996,622.17,621.49,1.19948932]
[1743008272163,0.93767996,622.16,621.49,1.19948932]
[1743008272359,0.93767996,622.16,621.52,1.19948932]
[1743008272764,0.93767996,622.2,621.52,1.19948932]
[1743008273270,2.17451188,622.19,621.52,1.19948932]
[1743008273659,1.23683192,622.18,621.52,1.19948932]
[1743008273860,1.23683192,622.17,621.52,1.19948932]
[1743008274165,1.23683192,622.16,621.52,1.19948932]
[1743008274467,2.17451188,622.15,621.31,1.19948932]
[1743008274663,1.23683192,622.14,621.31,1.19948932]
[1743008274863,1.94867996,622.15,621.31,1.19948932]
[1743008274864,1.23683192,622.13,621.31,1.19948932]
[1743008275066,1.23683192,622.12,621.31,1.19948932]
[1743008275363,1.23457301,622.11,621.31,1.19948932]
[1743008275565,1.23457301,622.12,621.31,1.19948932]
[1743008275762,0.93767996,622.1,621.31,1.19948932]
[1743008276065,0.93767996,622.09,621.31,1.19948932]
[1743008276763,0.93767996,622.14,621.31,1.19948932]
[1743008276965,1.23457301,622.13,621.31,1.19948932]
[1743008277163,1.23457301,622.12,621.31,1.19948932]
[1743008277361,0.93767996,622.13,621.21,0.27984062]
[1743008277362,1.23457301,622.11,621.21,0.27984062]
[1743008277565,1.23457301,622.1,621.21,0.27984062]
[1743008277869,1.23457301,622.09,621.21,0.27984062]
[1743008278067,1.23457301,622.1,621.21,0.27984062]
[1743008278267,1.93567996,622.08,621.21,0.27984062]
[1743008278869,0.998,622.08,621.21,0.27984062]
[1743008280369,0.998,622.08,621.34,1.19948932]
[1743008281467,2.057,622.08,621.34,1.19948932]
[1743008282667,2.32,622.08,621.34,1.19948932]
[1743008283070,2.32,622.08,621.35,1.19948932]
[1743008284873,2.32,622.08,621.36,1.19948932]
[1743008286777,2.32,622.08,621.41,1.19948932]
[1743008289077,2.32,622.08,621.42,1.19948932]
[1743008289276,4.007,622.08,621.42,1.19948932]
[1743008290376,4.007,622.08,621.44,1.19948932]
[1743008293074,4.007,622.08,621.42,1.19948932]
[1743008293279,4.994,622.08,621.42,1.19948932]
[1743008294781,4.994,622.08,621.53,1.19948932]
[1743008297285,4.994,622.08,621.56,1.19948932]
[1743008299885,4.994,622.08,621.58,1.19948932]
[1743008301485,4.994,622.08,621.36,0.27980687]
[1743008301486,4.994,622.08,621.65,1.19948932]
[1743008301985,0.987,622.08,621.65,1.19948932]
[1743008302184,1.23448121,622.64,621.65,1.19948932]
[1743008302383,0.32122321,622.62,621.65,1.19948932]
[1743008302588,1.52979275,622.61,621.65,1.19948932]
[1743008302784,0.32123869,622.59,621.65,1.19948932]
[1743008303087,1.23442657,622.58,621.65,1.19948932]
[1743008303288,2.49117898,622.57,621.65,1.19948932]
[1743008303490,1.55568074,622.56,621.65,1.19948932]
[1743008303686,2.4911893,622.55,621.65,1.19948932]
[1743008303891,1.55569106,622.54,621.65,1.19948932]
[1743008304088,1.55569622,622.53,621.7,1.19948932]
[1743008304389,2.49120478,622.52,621.7,1.19948932]
[1743008304590,1.55570654,622.51,621.7,1.19948932]
[1743008304791,1.55571171,622.5,621.7,1.19948932]
[1743008304993,1.55571687,622.49,621.7,1.19948932]
[1743008305186,1.55572203,622.48,621.7,1.19948932]
[1743008305391,1.55572719,622.47,621.7,1.19948932]
[1743008305593,1.55573235,622.46,621.7,1.19948932]
[1743008305790,1.55573751,622.45,621.7,1.19948932]
[1743008305987,1.55573751,622.45,621.24,1.44039636]
[1743008305988,1.55574268,622.44,621.68,1.19948932]
[1743008306191,1.55574784,622.43,621.68,1.19948932]
[1743008306388,1.555753,622.42,621.68,1.19948932]
[1743008306590,2.49126156,622.41,621.68,1.19948932]
[1743008306887,1.55618887,622.4,621.68,1.19948932]
[1743008307091,1.23485211,622.39,621.68,1.19948932]
[1743008307292,1.23485211,622.38,621.68,1.19948932]
[1743008307494,1.23491032,622.37,621.68,1.19948932]
[1743008307693,1.23491032,622.36,621.68,1.19948932]
[1743008307894,1.23491032,622.35,621.69,1.19948932]
[1743008308195,1.23491032,622.34,621.69,1.19948932]
[1743008308394,1.23491032,622.33,621.69,1.19948932]
[1743008308587,0.9355034,622.34,621.69,1.19948932]
[1743008308789,2.17084158,622.33,621.69,1.19948932]
[1743008308992,1.23533818,622.32,621.69,1.19948932]
[1743008309291,1.23533818,622.31,621.69,1.19948932]
[1743008309490,1.23533818,622.3,621.69,1.19948932]
[1743008309693,1.21526303,622.32,621.69,1.19948932]
[1743008309893,0.9355034,622.3,621.69,1.19948932]
[1743008310089,0.27975963,622.32,621.69,1.19948932]
[1743008310289,0.27975963,622.32,621.57,1.19948932]
[1743008311094,1.23557947,622.31,621.57,1.19948932]
[1743008311294,1.23557947,622.3,621.57,1.19948932]
[1743008311502,1.23557947,622.29,621.57,1.19948932]
[1743008311695,1.23557947,622.28,621.57,1.19948932]
[1743008311901,1.23557947,622.27,621.57,1.19948932]
[1743008312094,1.23557947,622.26,621.57,1.19948932]
[1743008312297,1.23557947,622.25,621.57,1.19948932]
[1743008312496,1.23557947,622.24,621.56,1.19948932]
[1743008312696,1.23557947,622.23,621.56,1.19948932]
[1743008312896,1.23557947,622.22,621.56,1.19948932]
[1743008313099,1.23557947,622.21,621.56,1.19948932]
[1743008313299,1.23557947,622.2,621.56,1.19948932]
[1743008313500,1.23557947,622.19,621.56,1.19948932]
[1743008313696,2.17190957,622.18,621.56,1.19948932]
[1743008313896,1.23557947,622.17,621.56,1.19948932]
[1743008314095,1.23557947,622.16,621.56,1.19948932]
[1743008314299,0.9363301,622.18,621.56,1.19948932]
[1743008314500,1.23603431,622.17,621.56,1.19948932]
[1743008314695,0.9363301,622.17,621.48,1.19948932]
[1743008314896,1.23604799,622.16,621.48,1.19948932]
[1743008315100,0.9363301,622.16,621.48,1.19948932]
[1743008315595,0.9363301,622.15,621.48,1.19948932]
[1743008316504,0.9363301,622.15,621.49,1.19948932]
[1743008316702,0.9363301,622.14,621.49,1.19948932]
[1743008317304,0.9363301,622.13,621.49,1.19948932]
[1743008318002,0.9363301,622.12,621.49,1.19948932]
[1743008318303,1.23652244,622.36,621.49,1.19948932]
[1743008318498,0.27980462,622.27,621.49,1.19948932]
[1743008318698,1.23652244,622.26,621.49,1.19948932]
[1743008318903,1.23652244,622.25,621.49,1.19948932]
[1743008319098,1.23652244,622.24,621.49,1.19948932]
[1743008319301,1.23652244,622.23,621.52,1.19948932]
[1743008319600,1.23652244,622.22,621.52,1.19948932]
[1743008319805,1.23652244,622.21,621.52,1.19948932]
[1743008320007,2.1737699,622.2,621.52,1.19948932]
[1743008320202,1.23652244,622.19,621.52,1.19948932]
[1743008320400,1.23652244,622.18,621.52,1.19948932]
[1743008320601,1.23652244,622.17,621.52,1.19948932]
[1743008320804,1.23652244,622.17,621.22,1.20105539]
[1743008320805,0.93724746,622.17,621.51,1.19948932]
[1743008321400,0.27978212,622.34,621.51,1.19948932]
[1743008321607,1.23768578,622.33,621.51,1.19948932]
[1743008321809,1.23768578,622.32,621.51,1.19948932]
[1743008322007,1.23768578,622.31,621.51,1.19948932]
[1743008322307,2.17559177,622.3,621.51,1.19948932]
[1743008322608,1.23768578,622.29,621.51,1.19948932]
[1743008322809,0.93790599,622.3,621.51,1.19948932]
[1743008322810,1.23768578,622.28,621.51,1.19948932]
[1743008323009,0.93790599,622.28,621.51,1.19948932]
[1743008323210,1.2382457,622.27,621.51,1.19948932]
[1743008323410,0.93790599,622.28,621.51,1.19948932]
[1743008323911,1.2382457,622.37,621.51,1.19948932]
[1743008324107,1.2382457,622.36,621.51,1.19948932]
[1743008324305,1.2382457,622.39,621.51,1.19948932]
[1743008324509,1.2382457,622.38,621.51,1.19948932]
[1743008324708,0.93860653,622.35,621.51,1.19948932]
[1743008325112,1.23876213,622.37,621.56,1.19948932]
[1743008325418,0.93871267,622.34,621.56,1.19948932]
[1743008325823,0.93871267,622.33,621.56,1.19948932]
[1743008326213,0.32133676,622.4,621.56,1.19948932]
[1743008326214,1.23876213,622.38,621.56,1.19948932]
[1743008326414,1.23876213,622.37,621.56,1.19948932]
[1743008330115,0.859,622.35,621.62,1.19948932]
[1743008330518,1.23761792,622.34,621.62,1.19948932]
[1743008330713,1.23761792,622.33,621.62,1.19948932]
[1743008331019,1.23752773,622.32,621.62,1.19948932]
[1743008331219,1.23752773,622.31,621.62,1.19948932]
[1743008331419,0.9375696,622.31,621.62,1.19948932]
[1743008332015,0.9375696,622.3,621.62,1.19948932]
[1743008332719,0.9375696,622.29,621.62,1.19948932]
[1743008333117,0.9375696,622.29,621.66,1.19948932]
[1743008333419,1.2368468,622.34,621.66,1.19948932]
[1743008333619,1.2368468,622.33,621.66,1.19948932]
[1743008333918,2.17413314,622.32,621.66,1.19948932]
[1743008334219,1.2368468,622.31,621.66,1.19948932]
[1743008334418,1.2368468,622.3,621.66,1.19948932]
[1743008334620,0.93728634,622.31,621.66,1.19948932]
[1743008334815,2.17430208,622.3,621.66,1.19948932]
[1743008335014,0.93728634,622.3,621.71,1.19948932]
[1743008335517,0.93728634,622.29,621.71,1.19948932]
[1743008336122,0.93728634,622.28,621.71,1.19948932]
[1743008336526,0.262,622.33,621.71,1.19948932]
[1743008336724,1.23720581,622.32,621.71,1.19948932]
[1743008336924,1.23720581,622.31,621.71,1.19948932]
[1743008337125,1.23720581,622.3,621.71,1.19948932]
[1743008337323,0.93755108,622.32,621.67,1.19948932]
[1743008337519,0.93755108,622.29,621.67,1.19948932]
[1743008337723,0.262,622.33,621.67,1.19948932]
[1743008340124,0.262,622.33,621.7,1.19948932]
[1743008340523,1.622,622.33,621.7,1.19948932]
[1743008344529,1.23781111,622.32,621.69,1.19948932]
[1743008344726,1.23781111,622.31,621.69,1.19948932]
[1743008344922,1.23780295,622.3,621.69,1.19948932]
[1743008345127,1.622,622.33,621.69,1.19948932]
[1743008345325,2.17531227,622.32,621.69,1.19948932]
[1743008345521,0.93755108,622.31,621.69,1.19948932]
[1743008346031,1.622,622.33,621.69,1.19948932]
[1743008346220,1.23760626,622.32,621.69,1.19948932]
[1743008346425,1.622,622.33,621.69,1.19948932]
[1743008346720,1.23753077,622.32,621.69,1.19948932]
[1743008346925,0.93779909,622.32,621.69,1.19948932]
[1743008347326,0.93779909,622.31,621.69,1.19948932]
[1743008347726,0.93779909,622.3,621.69,1.19948932]
[1743008348230,1.622,622.33,621.69,1.19948932]
[1743008348427,1.23734349,622.32,621.69,1.19948932]
[1743008348634,2.17500552,622.31,621.71,1.19948932]
[1743008348836,0.93766203,622.31,621.71,1.19948932]
[1743008349134,1.23733983,622.3,621.71,1.19948932]
[1743008349433,2.17493255,622.29,621.71,1.19948932]
[1743008349635,0.93766203,622.28,621.71,1.19948932]
[1743008350129,1.23726276,622.31,621.71,1.19948932]
[1743008350334,1.622,622.33,621.71,1.19948932]
[1743008350528,1.2372606,622.32,621.71,1.19948932]
[1743008350736,1.2372606,622.31,621.71,1.19948932]
[1743008351033,0.93759259,622.3,621.71,1.19948932]
[1743008351235,0.93759259,622.3,621.67,1.19948932]
[1743008351437,1.622,622.33,621.67,1.19948932]
[1743008351631,1.23730136,622.32,621.67,1.19948932]
[1743008351831,1.23730136,622.31,621.67,1.19948932]
[1743008352036,0.93760561,622.31,621.67,1.19948932]
[1743008352638,0.93760561,622.3,621.67,1.19948932]
[1743008352938,0.93760561,622.29,621.67,1.19948932]
[1743008353339,1.524,622.3,621.74,1.19948932]
[1743008355438,1.524,622.3,621.79,1.19948932]
[1743008357241,0.899,622.29,621.79,1.19948932]
[1743008357543,0.899,622.29,621.89,1.19948932]
[1743008357939,0.262,622.28,621.89,1.19948932]
[1743008358345,0.262,622.28,621.91,1.19948932]
[1743008360045,0.262,622.28,621.6,2.42464626]
[1743008360046,0.262,622.28,621.92,1.19948932]
[1743008361839,0.262,622.28,621.89,1.19948932]
[1743008363442,1.058,622.27,621.89,1.19948932]
[1743008364346,1.058,622.27,621.9,1.19948932]
[1743008366449,1.058,622.27,621.93,1.19948932]
[1743008369354,1.058,622.27,621.72,1.19948932]
[1743008371548,1.48,622.26,621.72,1.19948932]
[1743008371747,1.48,622.26,621.44,1.20105539]
[1743008371748,1.48,622.26,621.68,1.19948932]
[1743008375352,1.141,622.25,621.68,1.19948932]
[1743008377451,0.262,622.24,621.68,1.19948932]
[1743008378260,0.262,622.24,621.76,1.19948932]
[1743008379459,0.262,622.24,621.61,0.27971916]
[1743008379860,0.894,622.23,621.61,0.27971916]
[1743008380362,0.894,622.23,618.28,9.63969011]
[1743008381562,0.894,622.23,621.83,1.20322244]
[1743008384165,1.145,622.22,621.83,1.20322244]
[1743008384568,1.145,622.22,621.87,1.20322244]
[1743008385775,1.26,622.21,621.87,1.20322244]
[1743008386673,1.26,622.21,621.89,1.20322244]
[1743008389176,1.26,622.21,621.93,1.20322244]
[1743008390977,1.26,622.21,621.88,1.20322244]
[1743008393276,1.26,622.21,621.9,1.20322244]
[1743008396784,1.145,622.22,621.9,1.20322244]
[1743008397779,1.145,622.22,621.78,1.20322244]
[1743008399783,1.65,622.21,621.78,1.20322244]
[1743008399984,1.65,622.21,621.77,1.20322244]
[1743008400382,0.261,622.2,621.77,1.20322244]
[1743008402588,0.261,622.2,621.86,1.20322244]
[1743008404888,0.261,622.2,621.92,1.20322244]
[1743008406585,0.261,622.2,621.88,1.20322244]
[1743008409295,0.261,622.2,621.89,1.20322244]
[1743008410399,0.261,622.2,621.41,1.44386693]
[1743008410593,1.24039319,622.19,620.94,0.32209231]
[1743008410796,0.261,622.2,620.94,0.32209231]
[1743008410993,2.18030927,622.19,620.94,0.32209231]
[1743008411195,1.2403632,622.18,620.94,0.32209231]
[1743008411494,0.93994607,622.19,620.95,0.27984625]
[1743008411798,0.93994607,622.17,620.95,0.27984625]
[1743008411994,0.93994607,622.16,620.95,0.27984625]
[1743008412191,0.261,622.2,620.97,0.32207675]
[1743008412397,0.999,622.15,621.58,1.20334143]
[1743008413294,1.095,622.14,621.58,1.20334143]
[1743008413992,1.095,622.14,621.57,1.20334143]
[1743008415693,1.095,622.14,621.53,1.20334143]
[1743008419600,1.095,622.14,621.71,1.20334143]
[1743008419795,0.905,622.13,621.71,1.20334143]
[1743008421897,0.905,622.13,621.55,1.20334143]
[1743008422998,0.261,622.12,621.55,1.20334143]
[1743008425102,0.261,622.12,621.54,1.20334143]
[1743008427808,0.261,622.12,621.57,1.20334143]
[1743008430208,0.261,622.12,621.58,1.20334143]
[1743008431807,0.261,622.12,621.63,1.20334143]
[1743008433908,0.261,622.12,621.43,1.20334143]
[1743008433909,0.261,622.12,621.66,1.20334143]
[1743008436713,0.261,622.12,621.48,1.20334143]
[1743008438915,0.261,622.12,621.64,1.20334143]
[1743008441918,0.261,622.12,621.52,1.20334143]
[1743008444020,0.261,622.12,621.63,1.20334143]
[1743008445927,0.905,622.13,621.64,1.20334143]
[1743008448325,0.905,622.13,621.65,1.20334143]
[1743008450729,0.905,622.13,621.67,1.20334143]
[1743008453528,0.905,622.13,621.74,1.20334143]
[1743008456132,0.905,622.13,621.71,1.20334143]
[1743008457828,0.905,622.13,621.56,1.20334143]
[1743008462037,0.905,622.13,621.53,1.20334143]
[1743008462937,1.139,622.12,621.53,1.20334143]
[1743008463530,1.139,622.12,621.58,1.20334143]
[1743008465034,1.139,622.12,621.46,1.20334143]
[1743008466530,1.139,622.12,621.6,1.20334143]
[1743008468639,1.139,622.12,621.61,1.20334143]
[1743008470333,1.264,622.11,621.61,1.20334143]
[1743008472238,1.24000216,622.1,621.61,1.20334143]
[1743008472438,1.24000216,622.09,621.61,1.20334143]
[1743008472639,1.24000216,622.08,621.61,1.20334143]
[1743008472842,1.24000216,622.07,621.78,1.20334143]
[1743008473038,1.24000216,622.06,621.78,1.20334143]
[1743008473238,0.93974977,622.06,621.78,1.20334143]
[1743008473834,0.93974977,622.05,621.78,1.20334143]
[1743008474237,1.23969883,622.1,621.78,1.20334143]
[1743008474435,1.264,622.11,621.78,1.20334143]
[1743008474634,0.93949329,622.09,621.5,1.20334143]
[1743008475136,0.93949329,622.08,621.5,1.20334143]
[1743008475539,1.264,622.11,621.5,1.20334143]
[1743008476533,1.264,622.11,621.28,1.20334143]
[1743008476534,1.264,622.11,621.53,1.20334143]
[1743008476937,1.257,622.1,621.53,1.20334143]
[1743008478538,1.257,622.1,621.68,1.20334143]
[1743008480941,1.257,622.1,621.63,1.20334143]
[1743008483342,1.257,622.1,621.67,1.20334143]
[1743008484045,2.206,622.1,621.67,1.20334143]
[1743008485443,2.206,622.1,621.75,1.20334143]
[1743008488046,2.206,622.1,621.79,1.20334143]
[1743008490053,2.206,622.1,621.7,1.20334143]
[1743008492048,2.206,622.1,621.69,1.20334143]
[1743008494153,2.206,622.1,621.7,1.20334143]
[1743008495952,2.206,622.1,621.72,1.20334143]
[1743008498360,2.206,622.1,621.73,1.20334143]
[1743008500562,2.206,622.1,601.13,14.3893003]
[1743008500563,2.206,622.1,621.66,1.20334143]
[1743008502466,2.206,622.1,621.65,1.20334143]
[1743008504062,2.206,622.1,621.41,0.279772]
[1743008504063,2.206,622.1,621.6,1.20334143]
[1743008506069,2.206,622.1,621.62,1.20334143]
[1743008507974,2.206,622.1,621.59,1.20334143]
[1743008509173,1.257,622.1,621.59,1.20334143]
[1743008509873,1.023,622.13,621.59,1.20334143]
[1743008510274,1.023,622.13,621.35,0.27980462]
[1743008510275,1.023,622.13,621.65,1.20334143]
[1743008511683,1.61,622.12,621.65,1.20334143]
[1743008512179,1.057,622.11,621.65,1.20334143]
[1743008512478,1.057,622.11,621.63,1.20334143]
[1743008513278,1.11,622.1,621.63,1.20334143]
[1743008513880,1.11,622.1,621.71,1.20334143]
[1743008516079,1.11,622.1,621.65,1.20334143]
[1743008517976,1.11,622.1,621.66,1.20334143]
[1743008518679,0.94016,622.09,621.66,1.20334143]
[1743008519275,2.18063335,622.08,621.66,1.20334143]
[1743008519476,1.24047335,622.07,621.66,1.20334143]
[1743008519679,1.24065369,622.06,621.66,1.20334143]
[1743008519877,0.94016,622.07,621.66,1.20334143]
[1743008520081,0.94016,622.05,621.66,1.20334143]
[1743008520277,1.24060961,622.04,621.67,1.20334143]
[1743008520482,0.94016,622.05,621.67,1.20334143]
[1743008520683,0.94016,622.03,621.67,1.20334143]
[1743008520978,1.24060852,622.02,621.67,1.20334143]
[1743008521182,1.24060852,622.01,621.67,1.20334143]
[1743008521382,1.24060852,622.0,621.67,1.20334143]
[1743008521584,0.94016,622.0,621.67,1.20334143]
[1743008521779,1.24047522,621.99,621.67,1.20334143]
[1743008521984,0.94016,622.0,621.67,1.20334143]
[1743008522286,0.94016,621.98,621.67,1.20334143]
[1743008522685,0.94016,621.97,621.67,1.20334143]
[1743008523185,1.11,622.1,621.67,1.20334143]
[1743008523389,1.24035828,622.09,621.67,1.20334143]
[1743008523586,1.24035828,622.08,621.67,1.20334143]
[1743008523887,1.24035828,622.07,621.67,1.20334143]
[1743008524086,0.93989097,622.08,621.67,1.20334143]
[1743008524087,1.24035828,622.06,621.67,1.20334143]
[1743008524285,1.24035828,622.05,621.67,1.20334143]
[1743008524482,1.24035828,622.04,621.67,1.20334143]
[1743008524688,1.24035828,622.03,621.67,1.20334143]
[1743008524889,1.24035828,622.02,621.48,1.20334143]
[1743008525085,0.93989097,622.02,621.48,1.20334143]
[1743008525485,0.93989097,622.01,621.48,1.20334143]
[1743008526385,0.93989097,622.0,621.48,1.20334143]
[1743008526986,0.93989097,621.99,621.48,1.20334143]
[1743008527487,0.93989097,621.98,621.2,1.20334143]
[1743008527986,1.23869542,622.05,621.2,1.20334143]
[1743008528185,1.23869542,622.04,621.2,1.20334143]
[1743008528387,0.2798665,622.06,621.2,1.20334143]
[1743008528586,0.93876774,622.03,621.2,1.20334143]
[1743008528985,0.93876774,622.02,621.2,1.20334143]
[1743008529582,0.93876774,622.01,621.2,1.20334143]
[1743008529788,0.93876774,622.05,621.21,1.20334143]
[1743008530182,0.93876774,622.04,621.21,1.20334143]
[1743008530690,1.083,622.03,621.21,1.20334143]
[1743008530887,2.02176774,622.03,621.21,1.20334143]
[1743008531486,1.083,622.03,621.21,1.20334143]
[1743008531687,1.083,622.03,621.2,1.20334143]
[1743008532588,0.884,622.02,621.2,1.20334143]
[1743008532789,1.82276774,622.02,621.2,1.20334143]
[1743008533391,0.93876774,622.01,621.2,1.20334143]
[1743008533990,0.884,622.02,621.34,1.20334143]
[1743008536885,0.884,622.02,621.39,1.20334143]
[1743008538390,0.8692217,622.02,621.39,1.20334143]
[1743008538989,0.8692217,622.02,621.35,1.20334143]
[1743008541085,0.8692217,622.02,621.34,1.20334143]
[1743008543496,0.8692217,622.02,621.21,0.27987663]
[1743008545292,0.8692217,622.02,621.17,1.20334143]
[1743008545595,0.8692217,622.02,621.22,1.20334143]
[1743008547497,0.8692217,622.02,621.26,1.20334143]
[1743008549297,1.348,622.01,621.26,1.20334143]
[1743008549701,1.348,622.01,621.34,1.20334143]
[1743008552200,1.348,622.01,621.43,1.20334143]
[1743008554102,1.348,622.01,621.65,1.20334143]
[1743008554302,0.8692217,622.02,621.65,1.20334143]
[1743008554506,1.061,622.15,621.65,1.20334143]
[1743008558102,1.061,622.15,621.82,1.20334143]
[1743008558610,0.27976638,622.35,621.82,1.20334143]
[1743008559405,3.272,622.36,621.82,1.20334143]
[1743008561009,3.272,622.36,621.79,1.20334143]
[1743008562409,0.93740036,622.35,621.79,1.20334143]
[1743008562905,3.272,622.36,621.79,1.20334143]
[1743008564508,3.272,622.36,621.79,1.1943096]
[1743008566012,3.272,622.36,621.46,0.27969555]
[1743008566415,3.272,622.36,621.4,1.20334143]
[1743008569115,3.272,622.36,621.41,1.48308082]
[1743008569318,3.272,622.36,621.41,1.20334143]
[1743008569717,3.272,622.36,621.41,1.4830797]
[1743008570319,3.272,622.36,621.41,0.27973827]
[1743008571216,2.232,622.36,621.41,0.27973827]
[1743008572320,2.232,622.36,621.38,1.20334143]
[1743008572515,2.232,622.36,621.44,1.20334143]
[1743008574018,1.001,622.35,621.44,1.20334143]
[1743008574420,1.001,622.35,621.41,0.27974164]
[1743008575324,1.001,622.35,621.24,1.20334143]
[1743008575623,1.001,622.35,621.25,0.32193158]
[1743008575824,1.001,622.35,621.25,0.60169009]
[1743008577424,0.991,622.34,621.25,0.60169009]
[1743008579525,0.991,622.34,621.25,1.80503152]
[1743008581824,0.991,622.34,621.25,0.60169009]
[1743008582825,1.06,622.33,621.25,0.60169009]
[1743008584119,1.06,622.33,621.39,1.20334143]
[1743008586223,1.06,622.33,621.31,0.27974389]
[1743008586224,1.06,622.33,621.5,1.20334143]
[1743008588729,1.06,622.33,621.7,1.20334143]
[1743008590628,1.06,622.33,621.76,1.20334143]
[1743008592330,1.06,622.33,621.78,1.20334143]
[1743008595033,1.06,622.33,621.5,0.27971803]
[1743008595034,1.06,622.33,621.65,1.20334143]
[1743008597434,1.06,622.33,614.63,5.75572013]
[1743008597435,1.06,622.33,621.66,1.20334143]
[1743008598135,2.703,622.33,621.66,1.20334143]
[1743008600736,2.703,622.33,621.49,0.27974277]
[1743008600737,2.703,622.33,621.62,1.20334143]
[1743008601640,0.93644821,622.32,621.62,1.20334143]
[1743008602033,1.643,622.33,621.62,1.20334143]
[1743008602233,1.346,622.32,621.62,1.20334143]
[1743008602845,1.346,622.32,621.64,1.20334143]
[1743008604445,2.227,622.32,621.64,1.20334143]
[1743008605445,2.227,622.32,621.6,1.20334143]
[1743008605743,4.40164231,622.32,621.6,1.20334143]
[1743008606047,0.93753568,622.31,621.6,1.20334143]
[1743008606747,0.93753568,622.3,621.6,1.20334143]
[1743008607145,1.23743679,622.31,621.6,1.20334143]
[1743008607346,3.46443679,622.32,621.6,1.20334143]
[1743008607649,2.17543698,622.31,621.6,1.20334143]
[1743008607847,2.17543698,622.31,621.56,1.20334143]
[1743008608346,2.17581551,622.31,621.56,1.20334143]
[1743008608545,2.17581551,622.3,621.56,1.20334143]
[1743008608745,0.93800019,622.3,621.56,1.20334143]
[1743008608947,0.93800019,622.29,621.56,1.20334143]
[1743008609549,2.227,622.32,621.56,1.20334143]
[1743008609749,1.23872501,622.31,621.56,1.20334143]
[1743008610049,1.23872501,622.3,621.56,1.20334143]
[1743008610249,1.23868399,622.29,621.56,1.20334143]
[1743008610457,1.23868399,622.28,621.56,1.20334143]
[1743008610652,1.23868399,622.27,621.67,1.20334143]
[1743008610848,1.23868399,622.26,621.67,1.20334143]
[1743008611048,1.23868399,622.25,621.67,1.20334143]
[1743008611349,2.17735514,622.24,621.67,1.20334143]
[1743008611545,0.93867115,622.23,621.67,1.20334143]
[1743008611945,0.93867115,622.22,621.67,1.20334143]
[1743008612748,0.93867115,622.21,621.67,1.20334143]
[1743008613152,0.93867115,622.2,621.67,1.20334143]
[1743008613654,2.227,622.32,621.67,1.20334143]
[1743008613953,1.24016997,622.31,621.55,1.20334143]
[1743008614153,1.24015912,622.3,621.55,1.20334143]